fUST/lending_fUST_20250626
["ID","MTS","AMOUNT","RATE_DAILY","PERIOD"]
[367817228,1750935062199,-490.87,0.00018904,2]
[367817230,1750935062208,-618.59,0.00018904,2]
[367817233,1750935062220,-734.47,0.00018904,2]
[367817235,1750935062231,-4220.73,0.00018904,2]
[367817237,1750935062242,-460.0,0.00018904,2]
[367817238,1750935062252,-566.79,0.00018904,2]
[367817240,1750935062262,-2226.78,0.00018904,2]
[367817242,1750935062272,-518.08,0.00018904,2]
[367817244,1750935062283,-647.15,0.00018904,2]
[367817246,1750935062293,-832.77,0.00018904,2]
[367817249,1750935062303,-3294.22,0.00018904,2]
[367817250,1750935062313,-460.0,0.00018904,2]
[367817252,1750935062323,-1572.37,0.00018904,2]
[367817254,1750935062332,-984.53,0.00018904,2]
[367817256,1750935062342,-1306.82,0.00018904,2]
[367817259,1750935062353,-460.0,0.00018904,2]
[367817261,1750935062364,-460.0,0.00018904,2]
[367817262,1750935062374,-460.0,0.00018904,2]
[367817265,1750935062384,-828.69,0.00018904,2]
[367817267,1750935062394,-576.8,0.00018904,2]
[367817269,1750935062405,-460.0,0.00018904,2]
[367817271,1750935062415,-460.0,0.00018904,2]
[367817273,1750935062425,-542.24,0.00018904,2]
[367817275,1750935062435,-224.63,0.00018904,2]
[367817277,1750935062445,-460.0,0.00018904,2]
[367817279,1750935062455,-1511.1,0.00018904,2]
[367817281,1750935062464,-460.0,0.00018904,2]
[367817282,1750935062475,-1812.24,0.00018904,2]
[367817284,1750935062484,-460.0,0.00018904,2]
[367817286,1750935062494,-460.0,0.00018904,2]
[367817288,1750935062504,-582.33,0.00018904,2]
[367817290,1750935062514,-460.0,0.00018904,2]
[367817292,1750935062524,-1511.08,0.00018904,2]
[367817294,1750935062534,-502.37,0.00018904,2]
[367817296,1750935062544,-460.0,0.00018904,2]
[367817298,1750935062556,-688.89,0.00018904,2]
[367817300,1750935062567,-1077.29,0.00018904,2]
[367817302,1750935062577,-582.41,0.00018904,2]
[367817304,1750935062588,-1977.63,0.00018904,2]
[367817306,1750935062598,-460.0,0.00018904,2]
[367817308,1750935062608,-1625.98,0.00018904,2]
[367817310,1750935062618,-460.0,0.00018904,2]
[367817311,1750935062628,-574.56,0.00018904,2]
[367817313,1750935062639,-460.0,0.00018904,2]
[367817315,1750935062649,-460.0,0.00018904,2]
[367817317,1750935062659,-538.9,0.00018904,2]
[367817319,1750935062670,-551.91861802,0.00018904,2]
[367817321,1750935062679,-460.0,0.00018904,2]
[367817323,1750935062690,-460.0,0.00018904,2]
[367817325,1750935062700,-825.76,0.00018904,2]
[367817327,1750935062709,-460.0,0.00018904,2]
[367817329,1750935062720,-425.148073,0.00018904,2]
[367817331,1750935062730,-460.0,0.00018904,2]
[367817333,1750935062740,-460.0,0.00018904,2]
[367817335,1750935062751,-828.76,0.00018904,2]
[367817337,1750935062761,-460.0,0.00018904,2]
[367817339,1750935062771,-460.0,0.00018904,2]
[367817341,1750935062781,-460.0,0.00018904,2]
[367817343,1750935062790,-1259.49,0.00018904,2]
[367817345,1750935062800,-2002.73,0.00018904,2]
[367817347,1750935062811,-460.0,0.00018904,2]
[367817349,1750935062822,-1542.12,0.00018904,2]
[367817351,1750935062835,-460.0,0.00018904,2]
[367817353,1750935062845,-1156.67,0.00018904,2]
[367817355,1750935062855,-613.77210429,0.00018964,2]
[367817357,1750935062867,-2405.49793726,0.00019107,2]
[367817359,1750935062878,-185.0,0.00019125,2]
[367817361,1750935062888,-151.0,0.00019178,2]
[367817363,1750935062898,-460.0,0.00019178,2]
[367817365,1750935062909,-460.0,0.00019178,2]
[367817367,1750935062919,-460.0,0.00019178,2]
[367817369,1750935062929,-621.64,0.00019178,2]
[367817371,1750935062939,-501.31,0.00019178,2]
[367817373,1750935062948,-460.0,0.00019178,2]
[367817375,1750935062958,-460.0,0.00019178,2]
[367817377,1750935062968,-1118.1,0.00019178,2]
[367817379,1750935062978,-651.46,0.00019178,2]
[367817380,1750935062988,-460.0,0.00019178,2]
[367817382,1750935062999,-460.0,0.00019178,2]
[367817384,1750935063008,-460.0,0.00019178,2]
[367817386,1750935063018,-151.0,0.00019178,2]
[367817388,1750935063029,-460.0,0.00019178,2]
[367817390,1750935063039,-460.0,0.00019178,2]
[367817392,1750935063050,-211.25,0.00019178,2]
[367817394,1750935063060,-151.0,0.00019178,2]
[367817396,1750935063071,-460.0,0.00019178,2]
[367817398,1750935063081,-460.0,0.00019178,2]
[367817401,1750935063092,-151.0,0.00019178,2]
[367817402,1750935063103,-161.48196,0.00019178,2]
[367817404,1750935063114,-460.0,0.00019178,2]
[367817406,1750935063124,-460.0,0.00019178,2]
[367817416,1750935063135,-460.0,0.00019178,2]
[367817420,1750935063249,-460.0,0.00019178,2]
[367817422,1750935063261,-625.07,0.00019178,2]
[367817424,1750935063273,-460.0,0.00019178,2]
[367817426,1750935063284,-460.0,0.00019178,2]
[367817430,1750935063322,-371.19283308,0.00019178,2]
[367817432,1750935063334,-460.0,0.00019178,2]
[367817434,1750935063344,-460.0,0.00019178,2]
[367817436,1750935063355,-460.0,0.00019178,2]
[367817439,1750935063366,-460.0,0.00019178,2]
[367817441,1750935063375,-460.0,0.00019178,2]
[367817443,1750935063386,-460.0,0.00019178,2]
[367817445,1750935063397,-484.22,0.00019178,2]
[367817447,1750935063407,-206.1573673,0.00019178,2]
[367817448,1750935063417,-2275.04,0.00019178,2]
[367817450,1750935063427,-460.0,0.00019178,2]
[367817452,1750935063438,-460.0,0.00019178,2]
[367817454,1750935063448,-1636.78,0.00019178,2]
[367817457,1750935063459,-460.0,0.00019178,2]
[367817459,1750935063470,-460.0,0.00019178,2]
[367817461,1750935063482,-350.9,0.00019178,2]
[367817462,1750935063493,-597.31,0.00019178,2]
[367817465,1750935063505,-468.95,0.00019178,2]
[367817466,1750935063516,-460.0,0.00019178,2]
[367817468,1750935063526,-2327.62,0.00019178,2]
[367817470,1750935063537,-517.49,0.00019178,2]
[367817473,1750935063549,-460.0,0.00019178,2]
[367817474,1750935063559,-3709.84,0.00019178,2]
[367817477,1750935063569,-490.87,0.00019178,2]
[367817478,1750935063582,-618.59,0.00019178,2]
[367817481,1750935063592,-734.47,0.00019178,2]
[367817482,1750935063604,-4220.73,0.00019178,2]
[367817484,1750935063615,-460.0,0.00019178,2]
[367817487,1750935063625,-566.79,0.00019178,2]
[367817489,1750935063636,-2226.78,0.00019178,2]
[367817491,1750935063645,-518.08,0.00019178,2]
[367817492,1750935063656,-647.15,0.00019178,2]
[367817494,1750935063666,-832.77,0.00019178,2]
[367817496,1750935063676,-3294.22,0.00019178,2]
[367817498,1750935063686,-460.0,0.00019178,2]
[367817500,1750935063696,-1572.37,0.00019178,2]
[367817502,1750935063706,-984.53,0.00019178,2]
[367817504,1750935063717,-1306.82,0.00019178,2]
[367817506,1750935063727,-460.0,0.00019178,2]
[367817508,1750935063738,-460.0,0.00019178,2]
[367817510,1750935063749,-460.0,0.00019178,2]
[367817512,1750935063759,-828.69,0.00019178,2]
[367817514,1750935063771,-576.8,0.00019178,2]
[367817516,1750935063782,-460.0,0.00019178,2]
[367817519,1750935063793,-460.0,0.00019178,2]
[367817521,1750935063803,-542.24,0.00019178,2]
[367817523,1750935063814,-460.0,0.00019178,2]
[367817525,1750935063825,-1511.1,0.00019178,2]
[367817527,1750935063836,-460.0,0.00019178,2]
[367817528,1750935063846,-1812.24,0.00019178,2]
[367817530,1750935063854,-460.0,0.00019178,2]
[367817532,1750935063864,-460.0,0.00019178,2]
[367817534,1750935063875,-582.33,0.00019178,2]
[367817536,1750935063885,-460.0,0.00019178,2]
[367817539,1750935063894,-151.0,0.00019178,2]
[367817541,1750935063905,-1511.08,0.00019178,2]
[367817543,1750935063914,-151.0,0.00019178,2]
[367817544,1750935063924,-502.37,0.00019178,2]
[367817546,1750935063933,-460.0,0.00019178,2]
[367817548,1750935063944,-688.89,0.00019178,2]
[367817551,1750935063954,-1077.29,0.00019178,2]
[367817553,1750935063965,-582.41,0.00019178,2]
[367817554,1750935063974,-1977.63,0.00019178,2]
[367817556,1750935063984,-460.0,0.00019178,2]
[367817558,1750935063994,-1625.98,0.00019178,2]
[367817561,1750935064004,-460.0,0.00019178,2]
[367817563,1750935064014,-574.56,0.00019178,2]
[367817565,1750935064023,-460.0,0.00019178,2]
[367817567,1750935064032,-460.0,0.00019178,2]
[367817569,1750935064042,-538.9,0.00019178,2]
[367817570,1750935064053,-460.0,0.00019178,2]
[367817572,1750935064062,-460.0,0.00019178,2]
[367817574,1750935064072,-825.76,0.00019178,2]
[367817577,1750935064082,-460.0,0.00019178,2]
[367817579,1750935064092,-460.0,0.00019178,2]
[367817581,1750935064101,-460.0,0.00019178,2]
[367817583,1750935064111,-828.76,0.00019178,2]
[367817585,1750935064120,-485.13560277,0.00019178,2]
[367817586,1750935064129,-460.0,0.00019178,2]
[367817589,1750935064139,-460.0,0.00019178,2]
[367817590,1750935064148,-1259.49,0.00019178,2]
[367817592,1750935064158,-2002.73,0.00019178,2]
[367817595,1750935064169,-460.0,0.00019178,2]
[367817597,1750935064178,-1542.12,0.00019178,2]
[367817598,1750935064188,-460.0,0.00019178,2]
[367817600,1750935064198,-1156.67,0.00019178,2]
[367817602,1750935064208,-324.08914,0.00019178,2]
[367817604,1750935064217,-29022.9130628,0.00019178,2]
[367817607,1750935064227,-385.554908,0.00019178,2]
[367817609,1750935064237,-185.0,0.00019188,2]
[367817610,1750935064247,-2000.0,0.00019242,2]
[367817612,1750935064257,-1011.32697788,0.00019242,2]
[367817614,1750935064267,-500.0,0.00019284,2]
[367817616,1750935064276,-500.0,0.00019284,2]
[367817618,1750935064286,-500.0,0.00019284,2]
[367817621,1750935064297,-500.0,0.00019284,2]
[367817622,1750935064307,-500.0,0.00019284,2]
[367817625,1750935064316,-521.18889866,0.00019284,2]
[367817627,1750935064326,-500.0,0.00019284,2]
[367817628,1750935064336,-500.0,0.00019284,2]
[367817631,1750935064346,-500.18674294,0.00019284,2]
[367817633,1750935064355,-500.0,0.00019284,2]
[367817635,1750935064365,-500.0,0.00019284,2]
[367817637,1750935064375,-500.33689956,0.00019284,2]
[367817638,1750935064384,-500.0,0.00019284,2]
[367817641,1750935064394,-500.0,0.00019284,2]
[367817642,1750935064403,-432.95481487,0.00019284,2]
[367817644,1750935064412,-153.0,0.00019288,2]
[367817646,1750935064421,-153.0,0.00019288,2]
[367817648,1750935064431,-153.0,0.00019288,2]
[367817650,1750935064440,-153.0,0.00019288,2]
[367817652,1750935064450,-2504.79287362,0.00019309,2]
[367817654,1750935064459,-6544.25534241,0.00019362,2]
[367817656,1750935064468,-2405.49793726,0.00019383,2]
[367817658,1750935064478,-587.0,0.00019405,2]
[367817660,1750935064487,-477.7,0.00019452,2]
[367817663,1750935064497,-460.0,0.00019452,2]
[367817664,1750935064507,-621.64,0.00019452,2]
[367817666,1750935064517,-501.31,0.00019452,2]
[367817668,1750935064526,-423.06168904,0.00019452,2]
[367817670,1750935064536,-460.0,0.00019452,2]
[367817673,1750935064547,-1118.1,0.00019452,2]
[367817675,1750935064557,-651.46,0.00019452,2]
[367817677,1750935064566,-460.0,0.00019452,2]
[367817678,1750935064576,-460.0,0.00019452,2]
[367817680,1750935064585,-460.0,0.00019452,2]
[367817682,1750935064594,-151.0,0.00019452,2]
[367817684,1750935064603,-460.0,0.00019452,2]
[367817686,1750935064612,-460.0,0.00019452,2]
[367817688,1750935064621,-460.0,0.00019452,2]
[367817690,1750935064631,-460.0,0.00019452,2]
[367817692,1750935064640,-460.0,0.00019452,2]
[367817695,1750935064649,-460.0,0.00019452,2]
[367817697,1750935064660,-476.85753628,0.00019452,2]
[367817699,1750935064669,-460.0,0.00019452,2]
[367817701,1750935064678,-151.0,0.00019452,2]
[367817703,1750935064687,-625.07,0.00019452,2]
[367817705,1750935064697,-151.0,0.00019452,2]
[367817707,1750935064707,-582.141452,0.00019452,2]
[367817709,1750935064716,-460.0,0.00019452,2]
[367817711,1750935064725,-460.0,0.00019452,2]
[367817713,1750935064735,-460.0,0.00019452,2]
[367817715,1750935064744,-460.0,0.00019452,2]
[367817717,1750935064754,-460.0,0.00019452,2]
[367817719,1750935064765,-460.0,0.00019452,2]
[367817721,1750935064774,-460.0,0.00019452,2]
[367817723,1750935064783,-484.22,0.00019452,2]
[367817725,1750935064793,-2275.04,0.00019452,2]
[367817727,1750935064803,-460.0,0.00019452,2]
[367817729,1750935064812,-460.0,0.00019452,2]
[367817731,1750935064823,-1636.78,0.00019452,2]
[367817733,1750935064835,-460.0,0.00019452,2]
[367817735,1750935064845,-460.0,0.00019452,2]
[367817737,1750935064856,-597.31,0.00019452,2]
[367817739,1750935064866,-468.95,0.00019452,2]
[367817741,1750935064877,-460.0,0.00019452,2]
[367817743,1750935064887,-2327.62,0.00019452,2]
[367817754,1750935064980,-151.0,0.00019452,2]
[367817756,1750935064992,-517.49,0.00019452,2]
[367817758,1750935065002,-460.0,0.00019452,2]
[367817760,1750935065012,-3709.84,0.00019452,2]
[367817762,1750935065021,-490.87,0.00019452,2]
[367817764,1750935065031,-618.59,0.00019452,2]
[367817766,1750935065041,-734.47,0.00019452,2]
[367817768,1750935065051,-4220.73,0.00019452,2]
[367817770,1750935065063,-151.0,0.00019452,2]
[367817772,1750935065074,-151.0,0.00019452,2]
[367817774,1750935065084,-460.0,0.00019452,2]
[367817776,1750935065094,-566.79,0.00019452,2]
[367817778,1750935065103,-2226.78,0.00019452,2]
[367817780,1750935065113,-518.08,0.00019452,2]
[367817782,1750935065123,-151.0,0.00019452,2]
[367817784,1750935065134,-647.15,0.00019452,2]
[367817787,1750935065144,-832.77,0.00019452,2]
[367817788,1750935065153,-3294.22,0.00019452,2]
[367817790,1750935065162,-460.0,0.00019452,2]
[367817793,1750935065173,-1572.37,0.00019452,2]
[367817795,1750935065183,-984.53,0.00019452,2]
[367817797,1750935065193,-1306.82,0.00019452,2]
[367817799,1750935065203,-460.0,0.00019452,2]
[367817801,1750935065213,-460.0,0.00019452,2]
[367817802,1750935065223,-460.0,0.00019452,2]
[367817803,1750935065233,-828.69,0.00019452,2]
[367817804,1750935065243,-576.8,0.00019452,2]
[367817805,1750935065253,-460.0,0.00019452,2]
[367817806,1750935065263,-460.0,0.00019452,2]
[367817807,1750935065276,-542.24,0.00019452,2]
[367817808,1750935065286,-460.0,0.00019452,2]
[367817809,1750935065296,-1511.1,0.00019452,2]
[367817810,1750935065305,-460.0,0.00019452,2]
[367817811,1750935065315,-1812.24,0.00019452,2]
[367817812,1750935065324,-460.0,0.00019452,2]
[367817813,1750935065335,-460.0,0.00019452,2]
[367817814,1750935065344,-582.33,0.00019452,2]
[367817815,1750935065355,-460.0,0.00019452,2]
[367817816,1750935065365,-1511.08,0.00019452,2]
[367817817,1750935065375,-502.37,0.00019452,2]
[367817819,1750935065385,-336.31826298,0.00019452,2]
[367817821,1750935065395,-688.89,0.00019452,2]
[367817824,1750935065416,-1077.29,0.00019452,2]
[367817826,1750935065427,-582.41,0.00019452,2]
[367817828,1750935065438,-1977.63,0.00019452,2]
[367817830,1750935065451,-460.0,0.00019452,2]
[367817832,1750935065464,-1625.98,0.00019452,2]
[367817834,1750935065475,-460.0,0.00019452,2]
[367817836,1750935065485,-574.56,0.00019452,2]
[367817838,1750935065495,-460.0,0.00019452,2]
[367817841,1750935065506,-460.0,0.00019452,2]
[367817842,1750935065515,-538.9,0.00019452,2]
[367817845,1750935065526,-460.0,0.00019452,2]
[367817847,1750935065537,-412.4,0.00019452,2]
[367817849,1750935065547,-825.76,0.00019452,2]
[367817851,1750935065556,-460.0,0.00019452,2]
[367817853,1750935065566,-460.0,0.00019452,2]
[367817855,1750935065577,-460.0,0.00019452,2]
[367817857,1750935065587,-828.76,0.00019452,2]
[367817859,1750935065596,-460.0,0.00019452,2]
[367817861,1750935065606,-1259.49,0.00019452,2]
[367817863,1750935065616,-460.0,0.00019452,2]
[367817865,1750935065629,-2002.73,0.00019452,2]
[367817867,1750935065639,-460.0,0.00019452,2]
[367817869,1750935065648,-1542.12,0.00019452,2]
[367817871,1750935065658,-460.0,0.00019452,2]
[367817873,1750935065668,-1156.67,0.00019452,2]
[367817875,1750935065678,-388.0,0.00019462,2]
[367817877,1750935065688,-151.0,0.00019462,2]
[367817879,1750935065697,-151.0,0.00019462,2]
[367817882,1750935065707,-151.0,0.00019462,2]
[367817884,1750935065718,-500.0,0.00019462,2]
[367817886,1750935065729,-151.0,0.00019462,2]
[367817888,1750935065739,-500.0,0.00019462,2]
[367817890,1750935065751,-151.0,0.00019462,2]
[367817892,1750935065761,-500.0,0.00019462,2]
[367817894,1750935065771,-151.0,0.00019462,2]
[367817896,1750935065782,-500.0,0.00019462,2]
[367817898,1750935065792,-500.0,0.00019462,2]
[367817900,1750935065802,-151.0,0.00019462,2]
[367817902,1750935065812,-151.0,0.00019462,2]
[367817904,1750935065822,-500.0,0.00019462,2]
[367817906,1750935065836,-151.0,0.00019462,2]
[367817908,1750935065846,-151.0,0.00019462,2]
[367817911,1750935065857,-151.0,0.00019462,2]
[367817913,1750935065867,-500.0,0.00019462,2]
[367817915,1750935065877,-151.0,0.00019462,2]
[367817917,1750935065886,-151.0,0.00019462,2]
[367817919,1750935065896,-500.0,0.00019462,2]
[367817921,1750935065905,-273.74990888,0.00019462,2]
[367817923,1750935065915,-151.0,0.00019462,2]
[367817924,1750935065925,-500.0,0.00019462,2]
[367817927,1750935065936,-500.0,0.00019462,2]
[367817929,1750935065946,-500.0,0.00019462,2]
[367817931,1750935065956,-151.0,0.00019462,2]
[367817933,1750935065968,-151.0,0.00019462,2]
[367817935,1750935065978,-500.0,0.00019462,2]
[367817937,1750935065989,-500.0,0.00019462,2]
[367817939,1750935066000,-151.0,0.00019462,2]
[367817941,1750935066010,-500.0,0.00019462,2]
[367817943,1750935066020,-151.0,0.00019462,2]
[367817945,1750935066031,-151.0,0.00019462,2]
[367817948,1750935066045,-500.0,0.00019462,2]
[367817950,1750935066055,-500.0,0.00019462,2]
[367817952,1750935066065,-244.50989766,0.00019462,2]
[367817954,1750935066075,-207.4,0.00019462,2]
[367817956,1750935066084,-151.0,0.00019462,2]
[367817958,1750935066095,-500.0,0.00019462,2]
[367817960,1750935066104,-500.0,0.00019462,2]
[367817962,1750935066114,-151.0,0.00019462,2]
[367817964,1750935066124,-500.0,0.00019462,2]
[367817967,1750935066135,-151.0,0.00019462,2]
[367817969,1750935066145,-500.0,0.00019462,2]
[367817971,1750935066155,-151.0,0.00019462,2]
[367817973,1750935066166,-500.0,0.00019462,2]
[367817975,1750935066176,-500.0,0.00019462,2]
[367817977,1750935066186,-151.0,0.00019462,2]
[367817979,1750935066195,-500.0,0.00019462,2]
[367817981,1750935066205,-500.0,0.00019462,2]
[367817983,1750935066216,-151.0,0.00019462,2]
[367817985,1750935066227,-500.0,0.00019462,2]
[367817987,1750935066236,-500.0,0.00019462,2]
[367817989,1750935066247,-500.0,0.00019462,2]
[367817992,1750935066273,-500.0,0.00019462,2]
[367817994,1750935066284,-151.0,0.00019462,2]
[367817996,1750935066295,-500.0,0.00019462,2]
[367817998,1750935066306,-5000.0,0.00019462,2]
[367818000,1750935066317,-500.0,0.00019462,2]
[367818002,1750935066327,-500.0,0.00019462,2]
[367818004,1750935066339,-151.0,0.00019462,2]
[367818006,1750935066350,-500.0,0.00019462,2]
[367818008,1750935066360,-500.0,0.00019462,2]
[367818010,1750935066374,-500.0,0.00019462,2]
[367818013,1750935066384,-219.65880211,0.00019462,2]
[367818014,1750935066394,-500.0,0.00019462,2]
[367818017,1750935066404,-500.0,0.00019462,2]
[367818019,1750935066415,-500.0,0.00019462,2]
[367818021,1750935066424,-500.0,0.00019462,2]
[367818023,1750935066435,-500.0,0.00019462,2]
[367818025,1750935066445,-500.0,0.00019462,2]
[367818027,1750935066455,-500.0,0.00019462,2]
[367818029,1750935066465,-500.0,0.00019462,2]
[367818031,1750935066474,-500.0,0.00019462,2]
[367818033,1750935066484,-1880.25511664,0.00019462,2]
[367818035,1750935066494,-154.30026337,0.00019462,2]
[367818037,1750935066504,-500.0,0.00019462,2]
[367818039,1750935066514,-500.0,0.00019462,2]
[367818041,1750935066525,-151.27597907,0.00019462,2]
[367818043,1750935066536,-500.0,0.00019462,2]
[367818056,1750935066656,-193.91835657,0.00019462,2]
[367818058,1750935066666,-25000.0,0.00019462,2]
[367818060,1750935066676,-23656.00863629,0.00019462,2]
[367818062,1750935066686,-151.806325,0.00019462,2]
[367818064,1750935066695,-151.0,0.00019462,2]
[367818066,1750935066705,-151.0,0.00019462,2]
[367818068,1750935066715,-151.0,0.00019462,2]
[367818070,1750935066724,-226.403081,0.00019462,2]
[367818072,1750935066734,-226.403081,0.00019462,2]
[367818074,1750935066743,-151.0,0.00019462,2]
[367818076,1750935066752,-151.0,0.00019462,2]
[367818078,1750935066762,-151.0,0.00019462,2]
[367818080,1750935066772,-402.356,0.00019517,2]
[367818082,1750935066781,-366.0585355,0.00019533,2]
[367818084,1750935066791,-366.0585355,0.00019533,2]
[367818086,1750935066800,-366.0585355,0.00019533,2]
[367818088,1750935066810,-732.117071,0.00019533,2]
[367818090,1750935066820,-366.0585355,0.00019533,2]
[367818092,1750935066833,-417.243172,0.00019572,2]
[367818094,1750935066842,-185.0,0.00019616,2]
[367818096,1750935066852,-432.68116936,0.00019627,2]
[367818098,1750935066862,-302.574,0.00019631,2]
[367818100,1750935066871,-2405.49793726,0.00019659,2]
[367818102,1750935066882,-448.69037263,0.00019682,2]
[367818104,1750935066895,-966.0,0.00019694,2]
[367818106,1750935066906,-654.0,0.00019694,2]
[367818108,1750935066916,-2161.0,0.00019694,2]
[367818110,1750935066925,-406.0,0.00019694,2]
[367818112,1750935066934,-6858.70700737,0.00019726,2]
[367818114,1750935066944,-460.0,0.00019726,2]
[367818116,1750935066953,-621.64,0.00019726,2]
[367818118,1750935066964,-501.31,0.00019726,2]
[367818120,1750935066974,-460.0,0.00019726,2]
[367818122,1750935066984,-1118.1,0.00019726,2]
[367818124,1750935066994,-651.46,0.00019726,2]
[367818126,1750935067003,-460.0,0.00019726,2]
[367818128,1750935067014,-460.0,0.00019726,2]
[367818130,1750935067023,-460.0,0.00019726,2]
[367818132,1750935067033,-460.0,0.00019726,2]
[367818134,1750935067043,-460.0,0.00019726,2]
[367818136,1750935067052,-460.0,0.00019726,2]
[367818138,1750935067062,-460.0,0.00019726,2]
[367818140,1750935067071,-544.59286136,0.00019726,2]
[367818141,1750935067080,-151.0,0.00019726,2]
[367818143,1750935067090,-460.0,0.00019726,2]
[367818145,1750935067099,-460.0,0.00019726,2]
[367818147,1750935067109,-625.07,0.00019726,2]
[367818149,1750935067119,-460.0,0.00019726,2]
[367818151,1750935067128,-460.0,0.00019726,2]
[367818153,1750935067138,-460.0,0.00019726,2]
[367818155,1750935067149,-460.0,0.00019726,2]
[367818157,1750935067158,-460.0,0.00019726,2]
[367818159,1750935067168,-460.0,0.00019726,2]
[367818161,1750935067177,-212.36,0.00019726,2]
[367818163,1750935067188,-484.22,0.00019726,2]
[367818165,1750935067198,-2275.04,0.00019726,2]
[367818167,1750935067208,-460.0,0.00019726,2]
[367818169,1750935067217,-460.0,0.00019726,2]
[367818171,1750935067227,-1636.78,0.00019726,2]
[367818173,1750935067236,-460.0,0.00019726,2]
[367818175,1750935067246,-460.0,0.00019726,2]
[367818177,1750935067255,-597.31,0.00019726,2]
[367818179,1750935067264,-468.95,0.00019726,2]
[367818181,1750935067273,-460.0,0.00019726,2]
[367818183,1750935067283,-2327.62,0.00019726,2]
[367818185,1750935067293,-517.49,0.00019726,2]
[367818187,1750935067302,-460.0,0.00019726,2]
[367818189,1750935067311,-3709.84,0.00019726,2]
[367818191,1750935067321,-490.87,0.00019726,2]
[367818193,1750935067331,-618.59,0.00019726,2]
[367818195,1750935067340,-734.47,0.00019726,2]
[367818197,1750935067350,-4220.73,0.00019726,2]
[367818199,1750935067359,-354.56730608,0.00019726,2]
[367818201,1750935067368,-566.79,0.00019726,2]
[367818203,1750935067378,-2226.78,0.00019726,2]
[367818205,1750935067388,-518.08,0.00019726,2]
[367818207,1750935067397,-647.15,0.00019726,2]
[367818209,1750935067406,-832.77,0.00019726,2]
[367818212,1750935067425,-3294.22,0.00019726,2]
[367818214,1750935067436,-460.0,0.00019726,2]
[367818216,1750935067446,-1572.37,0.00019726,2]
[367818218,1750935067456,-984.53,0.00019726,2]
[367818220,1750935067465,-1306.82,0.00019726,2]
[367818222,1750935067476,-460.0,0.00019726,2]
[367818224,1750935067486,-460.0,0.00019726,2]
[367818226,1750935067496,-460.0,0.00019726,2]
[367818228,1750935067506,-828.69,0.00019726,2]
[367818230,1750935067516,-576.8,0.00019726,2]
[367818232,1750935067527,-460.0,0.00019726,2]
[367818235,1750935067537,-370.80919601,0.00019726,2]
[367818237,1750935067549,-542.24,0.00019726,2]
[367818239,1750935067559,-460.0,0.00019726,2]
[367818241,1750935067570,-1511.1,0.00019726,2]
[367818243,1750935067580,-515.47342929,0.00019726,2]
[367818245,1750935067591,-1812.24,0.00019726,2]
[367818247,1750935067600,-460.0,0.00019726,2]
[367818249,1750935067610,-460.0,0.00019726,2]
[367818251,1750935067621,-582.33,0.00019726,2]